fUSD/lending_fUSD_20250514
["ID","MTS","AMOUNT","RATE_DAILY","PERIOD"]
[361028344,1747209088058,-400.0,0.00012876,2]
[361028345,1747209088067,-151.0,0.00012876,2]
[361028346,1747209088077,-476.99,0.00012876,2]
[361028347,1747209088087,-502.4,0.00012876,2]
[361028348,1747209088097,-151.0,0.00012876,2]
[361028349,1747209088107,-400.0,0.00012876,2]
[361028350,1747209088118,-518.03,0.00012876,2]
[361028351,1747209088128,-4144.998466,0.00012876,2]
[361028352,1747209088138,-400.0,0.00012876,2]
[361028353,1747209088147,-151.0,0.00012876,2]
[361028354,1747209088157,-4144.998466,0.00012876,2]
[361028355,1747209088167,-400.0,0.00012876,2]
[361028356,1747209088177,-400.0,0.00012876,2]
[361028357,1747209088186,-2119.41,0.00012876,2]
[361028358,1747209088197,-528.83,0.00012876,2]
[361028359,1747209088206,-1034.94,0.00012876,2]
[361028360,1747209088216,-521.6,0.00012876,2]
[361028361,1747209088226,-833.6,0.00012876,2]
[361028362,1747209088235,-1089.67,0.00012876,2]
[361028363,1747209088246,-855.81,0.00012876,2]
[361028364,1747209088256,-649.48,0.00012876,2]
[361028365,1747209088266,-662.78,0.00012876,2]
[361028366,1747209088276,-1112.52,0.00012876,2]
[361028367,1747209088286,-450.15,0.00012876,2]
[361028368,1747209088296,-400.0,0.00012876,2]
[361028369,1747209088306,-299.374473,0.00012876,2]
[361028370,1747209088316,-670.7,0.00012876,2]
[361028371,1747209088326,-665.82,0.00012876,2]
[361028372,1747209088335,-400.0,0.00012876,2]
[361028373,1747209088345,-299.374473,0.00012876,2]
[361028374,1747209088358,-400.0,0.00012876,2]
[361028375,1747209088368,-936.51,0.00012876,2]
[361028376,1747209088378,-400.0,0.00012876,2]
[361028377,1747209088388,-1073.27,0.00012876,2]
[361028378,1747209088398,-400.0,0.00012876,2]
[361028379,1747209088409,-1216.82,0.00012876,2]
[361028380,1747209088419,-400.0,0.00012876,2]
[361028381,1747209088430,-400.0,0.00012876,2]
[361028382,1747209088441,-400.0,0.00012876,2]
[361028383,1747209088451,-400.0,0.00012876,2]
[361028384,1747209088462,-1630.94,0.00012876,2]
[361028385,1747209088473,-909.1,0.00012876,2]
[361028386,1747209088484,-400.0,0.00012876,2]
[361028387,1747209088494,-565.83,0.00012876,2]
[361028388,1747209088503,-400.0,0.00012876,2]
[361028389,1747209088513,-1329.57,0.00012876,2]
[361028390,1747209088523,-1847.25,0.00012876,2]
[361028391,1747209088534,-400.0,0.00012876,2]
[361028392,1747209088748,-400.0,0.00012876,2]
[361028393,1747209088765,-422.51,0.00012876,2]
[361028394,1747209088774,-400.0,0.00012876,2]
[361028395,1747209088783,-876.56,0.00012876,2]
[361028396,1747209088792,-400.0,0.00012876,2]
[361028397,1747209088801,-2140.12,0.00012876,2]
[361028398,1747209088810,-3381.800601,0.00012876,2]
[361028399,1747209088820,-571.96,0.00012876,2]
[361028400,1747209088829,-410.56,0.00012876,2]
[361028401,1747209088838,-892.67,0.00012876,2]
[361028402,1747209088847,-400.0,0.00012876,2]
[361028403,1747209088856,-400.0,0.00012876,2]
[361028404,1747209088866,-400.0,0.00012876,2]
[361028405,1747209088876,-400.0,0.00012876,2]
[361028406,1747209088885,-507.63,0.00012876,2]
[361028407,1747209088894,-1074.21,0.00012876,2]
[361028408,1747209088903,-400.0,0.00012876,2]
[361028409,1747209088912,-400.0,0.00012876,2]
[361028410,1747209088921,-2412.67,0.00012876,2]
[361028411,1747209088930,-400.0,0.00012876,2]
[361028412,1747209088940,-400.0,0.00012876,2]
[361028413,1747209088950,-400.0,0.00012876,2]
[361028414,1747209088959,-1071.37,0.00012876,2]
[361028415,1747209088968,-400.0,0.00012876,2]
[361028416,1747209088978,-151.0,0.00012876,2]
[361028417,1747209088987,-585.74,0.00012876,2]
[361028418,1747209088996,-400.0,0.00012876,2]
[361028419,1747209089006,-151.0,0.00012876,2]
[361028420,1747209089016,-156.32769,0.00012876,2]
[361028421,1747209089026,-1055.84,0.00012876,2]
[361028422,1747209089036,-400.0,0.00012876,2]
[361028423,1747209089047,-3342.19,0.00012876,2]
[361028424,1747209089056,-1569.68,0.00012876,2]
[361028425,1747209089066,-233.693639,0.00012876,2]
[361028426,1747209089076,-1011.98,0.00012876,2]
[361028427,1747209089086,-400.0,0.00012876,2]
[361028428,1747209089095,-437.7,0.00012876,2]
[361028429,1747209089105,-841.38,0.00012876,2]
[361028430,1747209089115,-151.0,0.00012876,2]
[361028431,1747209089124,-2138.29,0.00012876,2]
[361028432,1747209089134,-156.194239,0.00012876,2]
[361028433,1747209089143,-151.0,0.00012876,2]
[361028434,1747209089153,-400.0,0.00012876,2]
[361028435,1747209089163,-931.09,0.00012876,2]
[361028436,1747209089173,-799.14,0.00012876,2]
[361028437,1747209089183,-400.03,0.00012876,2]
[361028438,1747209089192,-449.42463703,0.00012876,2]
[361028439,1747209089201,-152.358966,0.00012876,2]
[361028440,1747209089210,-151.0,0.00012876,2]
[361028441,1747209089220,-400.0,0.00012876,2]
[361028442,1747209089230,-561.99,0.00012876,2]
[361028443,1747209089239,-447.86,0.00012876,2]
[361028444,1747209089249,-1506.45,0.00012876,2]
[361028445,1747209089259,-1248.25,0.00012876,2]
[361028446,1747209089268,-466.29,0.00012876,2]
[361028447,1747209089278,-500.31,0.00012876,2]
[361028448,1747209089287,-400.0,0.00012876,2]
[361028449,1747209089297,-559.56,0.00012876,2]
[361028450,1747209089306,-400.0,0.00012876,2]
[361028451,1747209089316,-400.0,0.00012876,2]
[361028452,1747209089326,-499.83,0.00012876,2]
[361028453,1747209089335,-400.0,0.00012876,2]
[361028454,1747209089345,-400.0,0.00012876,2]
[361028455,1747209089357,-400.0,0.00012876,2]
[361028456,1747209089367,-648.49,0.00012876,2]
[361028457,1747209089376,-400.0,0.00012876,2]
[361028458,1747209089386,-400.0,0.00012876,2]
[361028459,1747209089396,-400.0,0.00012876,2]
[361028460,1747209089406,-735.21,0.00012876,2]
[361028461,1747209089416,-2396.6,0.00012876,2]
[361028462,1747209089426,-151.0,0.00012876,2]
[361028463,1747209089435,-2603.784095,0.00012876,2]
[361028464,1747209089444,-488.25,0.00012876,2]
[361028465,1747209089453,-151.0,0.00012876,2]
[361028466,1747209089462,-2603.784095,0.00012876,2]
[361028467,1747209089473,-686.74,0.00012876,2]
[361028468,1747209089483,-663.93,0.00012876,2]
[361028469,1747209089493,-400.0,0.00012876,2]
[361028470,1747209089503,-151.0,0.00012876,2]
[361028471,1747209089513,-400.0,0.00012876,2]
[361028472,1747209089523,-400.0,0.00012876,2]
[361028473,1747209089533,-151.0,0.00012876,2]
[361028474,1747209089543,-765.05,0.00012876,2]
[361028475,1747209089552,-837.82,0.00012876,2]
[361028476,1747209089562,-400.0,0.00012876,2]
[361028477,1747209089572,-400.0,0.00012876,2]
[361028478,1747209089582,-846.38,0.00012876,2]
[361028479,1747209089591,-400.0,0.00012876,2]
[361028480,1747209089601,-713.16,0.00012876,2]
[361028481,1747209089611,-544.35,0.00012876,2]
[361028482,1747209089620,-1073.49,0.00012876,2]
[361028483,1747209089630,-400.0,0.00012876,2]
[361028484,1747209089640,-452.73,0.00012876,2]
[361028485,1747209089649,-400.0,0.00012876,2]
[361028486,1747209089659,-400.0,0.00012876,2]
[361028487,1747209089668,-610.73,0.00012876,2]
[361028488,1747209089678,-517.686712,0.00012876,2]
[361028489,1747209089687,-400.0,0.00012876,2]
[361028490,1747209089697,-400.0,0.00012876,2]
[361028491,1747209089706,-517.686712,0.00012876,2]
[361028492,1747209089718,-1807.34,0.00012876,2]
[361028493,1747209089729,-1075.48,0.00012876,2]
[361028494,1747209089738,-400.0,0.00012876,2]
[361028495,1747209089748,-442.29,0.00012876,2]
[361028496,1747209089757,-400.0,0.00012876,2]
[361028497,1747209089767,-504.1,0.00012876,2]
[361028498,1747209089776,-400.0,0.00012876,2]
[361028499,1747209089786,-561.75,0.00012876,2]
[361028500,1747209089796,-546.56,0.00012876,2]
[361028501,1747209089805,-690.43,0.00012876,2]
[361028502,1747209089815,-2472.70006,0.00012876,2]
[361028503,1747209089825,-400.0,0.00012876,2]
[361028504,1747209089835,-400.0,0.00012876,2]
[361028505,1747209089845,-400.0,0.00012876,2]
[361028506,1747209089855,-416.24,0.00012876,2]
[361028507,1747209089864,-2472.70006,0.00012876,2]
[361028508,1747209089874,-402.6,0.00012876,2]
[361028509,1747209089883,-250.80207981,0.00012876,2]
[361028510,1747209089895,-400.0,0.00012876,2]
[361028511,1747209089905,-400.0,0.00012876,2]
[361028512,1747209089914,-1113.76,0.00012876,2]
[361028513,1747209089923,-400.0,0.00012876,2]
[361028514,1747209089935,-400.0,0.00012876,2]
[361028515,1747209089945,-1405.65,0.00012876,2]
[361028516,1747209089954,-468.31,0.00012876,2]
[361028517,1747209089963,-1001.39,0.00012876,2]
[361028518,1747209089976,-777.85,0.00012876,2]
[361028519,1747209089986,-665.02,0.00012876,2]
[361028520,1747209089996,-2209.78,0.00012876,2]
[361028521,1747209090005,-542.27,0.00012876,2]
[361028522,1747209090015,-400.0,0.00012876,2]
[361028523,1747209090025,-1048.34,0.00012876,2]
[361028524,1747209090035,-400.0,0.00012876,2]
[361028525,1747209090045,-400.0,0.00012876,2]
[361028526,1747209090056,-1451.38,0.00012876,2]
[361028527,1747209090066,-619.23,0.00012876,2]
[361028528,1747209090075,-400.0,0.00012876,2]
[361028529,1747209090085,-2336.68,0.00012876,2]
[361028530,1747209090095,-845.06,0.00012876,2]
[361028531,1747209090104,-151.0,0.00012876,2]
[361028532,1747209090114,-400.0,0.00012876,2]
[361028533,1747209090123,-1320.89,0.00012876,2]
[361028534,1747209090132,-400.0,0.00012876,2]
[361028535,1747209090142,-666.66,0.00012876,2]
[361028536,1747209090151,-526.89272252,0.00012876,2]
[361028537,1747209090160,-663.81,0.00012876,2]
[361028538,1747209090170,-400.0,0.00012876,2]
[361028539,1747209090180,-400.0,0.00012876,2]
[361028540,1747209090189,-541.3,0.00012876,2]
[361028541,1747209090198,-400.0,0.00012876,2]
[361028542,1747209090208,-400.0,0.00012876,2]
[361028543,1747209090217,-400.0,0.00012876,2]
[361028544,1747209090228,-400.0,0.00012876,2]
[361028545,1747209090238,-400.0,0.00012876,2]
[361028546,1747209090247,-1134.08,0.00012876,2]
[361028547,1747209090257,-445.33,0.00012876,2]
[361028548,1747209090266,-1257.84,0.00012876,2]
[361028549,1747209090275,-575.36,0.00012876,2]
[361028550,1747209090285,-151.0,0.00012876,2]
[361028551,1747209090295,-400.0,0.00012876,2]
[361028552,1747209090304,-1000.0,0.00012876,2]
[361028553,1747209090313,-1007.26,0.00012876,2]
[361028554,1747209090323,-151.0,0.00012876,2]
[361028555,1747209090333,-400.0,0.00012876,2]
[361028556,1747209090342,-517.613398,0.00012876,2]
[361028557,1747209090353,-659.39,0.00012876,2]
[361028558,1747209090363,-1204.75,0.00012876,2]
[361028559,1747209090372,-400.98,0.00012876,2]
[361028560,1747209090382,-517.613398,0.00012876,2]
[361028561,1747209090391,-906.35,0.00012876,2]
[361028562,1747209090402,-1524.33,0.00012876,2]
[361028563,1747209090412,-466.88,0.00012876,2]
[361028564,1747209090422,-774.55,0.00012876,2]
[361028565,1747209090433,-254.933286,0.00012876,2]
[361028566,1747209090442,-400.0,0.00012876,2]
[361028567,1747209090453,-873.16,0.00012876,2]
[361028568,1747209090462,-523.37,0.00012876,2]
[361028569,1747209090471,-4342.01,0.00012876,2]
[361028570,1747209090480,-352.56,0.00012876,2]
[361028571,1747209090489,-3290.66,0.00012876,2]
[361028572,1747209090499,-620.73,0.00012876,2]
[361028573,1747209090508,-1318.63,0.00012876,2]
[361028574,1747209090518,-400.0,0.00012876,2]
[361028575,1747209090528,-400.0,0.00012876,2]
[361028576,1747209090538,-794.74,0.00012876,2]
[361028577,1747209090548,-400.0,0.00012876,2]
[361028578,1747209090558,-496.52,0.00012876,2]
[361028579,1747209090568,-558.78,0.00012876,2]
[361028580,1747209090577,-400.0,0.00012876,2]
[361028581,1747209090587,-903.19,0.00012876,2]
[361028582,1747209090596,-824.62,0.00012876,2]
[361028583,1747209090606,-400.0,0.00012876,2]
[361028584,1747209090615,-400.0,0.00012876,2]
[361028585,1747209090624,-1186.62,0.00012876,2]
[361028586,1747209090634,-525.47,0.00012876,2]
[361028587,1747209090643,-400.0,0.00012876,2]
[361028588,1747209090653,-992.09,0.00012876,2]
[361028589,1747209090663,-196.66719712,0.00012876,2]
[361028590,1747209090673,-507.48,0.00012876,2]
[361028591,1747209090683,-1186.0,0.00012876,2]
[361028592,1747209090693,-871.03,0.00012876,2]
[361028593,1747209090703,-2394.97,0.00012876,2]
[361028594,1747209090712,-8303.1,0.00012876,2]
[361028595,1747209090723,-635.51,0.00012876,2]
[361028596,1747209090734,-400.0,0.00012876,2]
[361028597,1747209090743,-635.86,0.00012876,2]
[361028598,1747209090753,-483.25,0.00012876,2]
[361028599,1747209090763,-762.97,0.00012876,2]
[361028600,1747209090773,-400.0,0.00012876,2]
[361028601,1747209090782,-185.07651,0.00012876,2]
[361028602,1747209090792,-400.0,0.00012876,2]
[361028603,1747209090802,-3884.54,0.00012876,2]
[361028604,1747209090811,-185.07651,0.00012876,2]
[361028605,1747209090821,-400.0,0.00012876,2]
[361028606,1747209090831,-539.78,0.00012876,2]
[361028607,1747209090840,-400.0,0.00012876,2]
[361028608,1747209090851,-566.07,0.00012876,2]
[361028609,1747209090861,-151.0,0.00012876,2]
[361028610,1747209090870,-400.0,0.00012876,2]
[361028611,1747209090880,-400.0,0.00012876,2]
[361028612,1747209090890,-9332.17,0.00012876,2]
[361028613,1747209090899,-400.0,0.00012876,2]
[361028614,1747209090909,-400.0,0.00012876,2]
[361028615,1747209090919,-400.0,0.00012876,2]
[361028616,1747209090928,-521.21,0.00012876,2]
[361028617,1747209090938,-1359.75,0.00012876,2]
[361028618,1747209090947,-1804.54,0.00012876,2]
[361028619,1747209090957,-400.0,0.00012876,2]
[361028620,1747209090966,-3867.76,0.00012876,2]
[361028621,1747209090976,-1228.35,0.00012876,2]
[361028622,1747209090986,-454.4,0.00012876,2]
[361028623,1747209090996,-154.038504,0.00012876,2]
[361028624,1747209091006,-400.0,0.00012876,2]
[361028625,1747209091015,-470.84,0.00012876,2]
[361028626,1747209091024,-451.23,0.00012876,2]
[361028627,1747209091033,-3381.56,0.00012876,2]
[361028628,1747209091042,-1518.64,0.00012876,2]
[361028629,1747209091051,-3045.01,0.00012876,2]
[361028630,1747209091061,-400.0,0.00012876,2]
[361028631,1747209091070,-7510.59,0.00012876,2]
[361028632,1747209091078,-983.94,0.00012876,2]
[361028633,1747209091087,-400.0,0.00012876,2]
[361028634,1747209091097,-480.02,0.00012876,2]
[361028635,1747209091106,-616.03,0.00012876,2]
[361028636,1747209091115,-585.46,0.00012876,2]
[361028637,1747209091124,-400.0,0.00012876,2]
[361028638,1747209091133,-1727.32,0.00012876,2]
[361028639,1747209091142,-1174.5,0.00012876,2]
[361028640,1747209091151,-824.11,0.00012876,2]
[361028641,1747209091160,-400.0,0.00012876,2]
[361028642,1747209091169,-400.0,0.00012876,2]
[361028643,1747209091179,-400.0,0.00012876,2]
[361028644,1747209091188,-901.12,0.00012876,2]
[361028645,1747209091198,-195.279798,0.00012876,2]
[361028646,1747209091207,-400.0,0.00012876,2]
[361028647,1747209091217,-195.279798,0.00012876,2]
[361028648,1747209091227,-400.0,0.00012876,2]
[361028649,1747209091237,-465.08,0.00012876,2]
[361028650,1747209091247,-295.886842,0.00012876,2]
[361028651,1747209091257,-975.74,0.00012876,2]
[361028652,1747209091267,-1658.78,0.00012876,2]
[361028653,1747209091276,-400.0,0.00012876,2]
[361028654,1747209091286,-700.75,0.00012876,2]
[361028655,1747209091295,-400.0,0.00012876,2]
[361028656,1747209091304,-803.12,0.00012876,2]
[361028657,1747209091314,-2190.3,0.00012876,2]
[361028658,1747209091323,-400.0,0.00012876,2]
[361028659,1747209091334,-1386.9,0.00012876,2]
[361028660,1747209091344,-400.0,0.00012876,2]
[361028661,1747209091355,-2230.886208,0.00012876,2]
[361028662,1747209091367,-400.0,0.00012876,2]
[361028663,1747209091377,-183.963342,0.00012876,2]
[361028664,1747209091388,-485.56,0.00012876,2]
[361028665,1747209091401,-1242.02,0.00012876,2]
[361028666,1747209091411,-151.0,0.00012876,2]
[361028667,1747209091421,-2230.886208,0.00012876,2]
[361028668,1747209091433,-790.06,0.00012876,2]
[361028669,1747209091443,-400.0,0.00012876,2]
[361028670,1747209091454,-183.963342,0.00012876,2]
[361028671,1747209091464,-400.0,0.00012876,2]
[361028672,1747209091477,-400.0,0.00012876,2]
[361028673,1747209091487,-1050.16,0.00012876,2]
[361028674,1747209091497,-21204.56,0.00012876,2]
[361028675,1747209091507,-151.0,0.00012876,2]
[361028676,1747209091518,-400.0,0.00012876,2]
[361028677,1747209091531,-1025.65,0.00012876,2]
[361028678,1747209091543,-400.0,0.00012876,2]
[361028679,1747209091552,-400.0,0.00012876,2]
[361028680,1747209091563,-462.47,0.00012876,2]
[361028681,1747209091572,-489.88,0.00012876,2]
[361028682,1747209091582,-173.76227,0.00012876,2]
[361028683,1747209091592,-400.0,0.00012876,2]
[361028684,1747209091604,-433.44,0.00012876,2]
[361028685,1747209091614,-248.60364854,0.00012876,2]
[361028686,1747209091624,-1903.72,0.00012876,2]
[361028687,1747209091633,-903.36,0.00012876,2]
[361028688,1747209091642,-400.0,0.00012876,2]
[361028689,1747209091652,-173.76227,0.00012876,2]
[361028690,1747209091662,-460.59,0.00012876,2]
[361028691,1747209091673,-620.740344,0.00012876,2]
[361028692,1747209091684,-400.0,0.00012876,2]
[361028693,1747209091694,-1352.46,0.00012876,2]
[361028694,1747209091706,-620.740344,0.00012876,2]
[361028695,1747209091718,-2297.07,0.00012876,2]
[361028696,1747209091728,-400.0,0.00012876,2]
[361028697,1747209091739,-400.0,0.00012876,2]
[361028698,1747209091751,-1010.68,0.00012876,2]
[361028699,1747209091763,-5802.65,0.00012876,2]
[361028700,1747209091775,-713.5,0.00012876,2]
[361028701,1747209091785,-1266.9,0.00012876,2]
[361028702,1747209091797,-434.56,0.00012876,2]
[361028703,1747209091807,-1158.53,0.00012876,2]
[361028704,1747209091818,-484.69,0.00012876,2]
[361028705,1747209091828,-1095.0,0.00012876,2]
[361028706,1747209091840,-1932.75,0.00012876,2]
[361028707,1747209091851,-435.72,0.00012876,2]
[361028708,1747209091861,-400.0,0.00012876,2]
[361028709,1747209091872,-1315.66,0.00012876,2]
[361028710,1747209091880,-457.59,0.00012876,2]
[361028711,1747209091891,-400.0,0.00012876,2]
[361028712,1747209091901,-454.255713,0.00012876,2]
[361028713,1747209091913,-496.1,0.00012876,2]
[361028714,1747209091923,-814.19,0.00012876,2]
[361028715,1747209091931,-459.36,0.00012876,2]
[361028716,1747209091941,-5005.62,0.00012876,2]
[361028717,1747209091949,-454.255713,0.00012876,2]
[361028718,1747209091957,-615.67,0.00012876,2]
[361028719,1747209091965,-4200.08,0.00012876,2]
[361028720,1747209091976,-400.0,0.00012876,2]
[361028721,1747209091986,-151.0,0.00012876,2]
[361028722,1747209091996,-400.0,0.00012876,2]
[361028723,1747209092006,-402.79,0.00012876,2]
[361028724,1747209092015,-400.0,0.00012876,2]
[361028725,1747209092024,-1129.39,0.00012876,2]
[361028726,1747209092033,-695.95,0.00012876,2]
[361028727,1747209092041,-558.35,0.00012876,2]
[361028728,1747209092050,-900.7,0.00012876,2]
[361028729,1747209092061,-400.0,0.00012876,2]
[361028730,1747209092071,-2565.38,0.00012876,2]
[361028731,1747209092081,-1206.83,0.00012876,2]
[361028732,1747209092090,-400.0,0.00012876,2]
[361028733,1747209092099,-704.13,0.00012876,2]
[361028734,1747209092109,-905.95,0.00012876,2]
[361028735,1747209092119,-400.0,0.00012876,2]
[361028736,1747209092131,-461.69,0.00012876,2]
[361028737,1747209092141,-151.0,0.00012876,2]
[361028738,1747209092347,-400.0,0.00012876,2]
[361028739,1747209092361,-1026.15,0.00012876,2]
[361028740,1747209092371,-926.7,0.00012876,2]
[361028741,1747209092381,-720.88,0.00012876,2]
[361028742,1747209092391,-828.79,0.00012876,2]
[361028743,1747209092402,-696.91,0.00012876,2]
[361028744,1747209092412,-2110.67,0.00012876,2]
[361028745,1747209092422,-400.0,0.00012876,2]
[361028746,1747209092432,-400.0,0.00012876,2]
[361028747,1747209092442,-540.58,0.00012876,2]
[361028748,1747209092451,-400.0,0.00012876,2]
[361028749,1747209092461,-1784.16,0.00012876,2]
[361028750,1747209092471,-400.0,0.00012876,2]
[361028751,1747209092481,-1232.7,0.00012876,2]
[361028752,1747209092491,-400.0,0.00012876,2]
[361028753,1747209092501,-1246.63,0.00012876,2]
[361028754,1747209092511,-400.0,0.00012876,2]
[361028755,1747209092523,-400.0,0.00012876,2]
[361028756,1747209092532,-1031.46,0.00012876,2]
[361028757,1747209092543,-415.13,0.00012876,2]
[361028758,1747209092553,-614.08,0.00012876,2]
[361028759,1747209092562,-915.16,0.00012876,2]
[361028760,1747209092572,-400.0,0.00012876,2]
[361028761,1747209092582,-400.0,0.00012876,2]
[361028762,1747209092592,-8117.6,0.00012876,2]
[361028763,1747209092602,-400.0,0.00012876,2]
[361028764,1747209092613,-1273.28,0.00012876,2]
[361028765,1747209092624,-400.0,0.00012876,2]
[361028766,1747209092634,-400.0,0.00012876,2]
[361028767,1747209092644,-400.0,0.00012876,2]
[361028768,1747209092655,-400.0,0.00012876,2]
[361028769,1747209092664,-2424.58,0.00012876,2]
[361028770,1747209092675,-447.54,0.00012876,2]
[361028771,1747209092685,-400.0,0.00012876,2]
[361028772,1747209092696,-723.09,0.00012876,2]
[361028773,1747209092706,-422.1,0.00012876,2]
[361028774,1747209092716,-1958.39,0.00012876,2]
[361028775,1747209092727,-400.0,0.00012876,2]
[361028776,1747209092738,-2526.26,0.00012876,2]
[361028777,1747209092750,-2914.11,0.00012876,2]
[361028778,1747209092759,-803.6,0.00012876,2]
[361028779,1747209092769,-8091.9,0.00012876,2]
[361028780,1747209092779,-599.26,0.00012876,2]
[361028781,1747209092788,-1000.0,0.00012876,2]
[361028782,1747209092798,-1722.0,0.00012876,2]
[361028783,1747209092807,-805.31,0.00012876,2]
[361028784,1747209092817,-905.05,0.00012876,2]
[361028785,1747209092826,-400.0,0.00012876,2]
[361028786,1747209092836,-400.0,0.00012876,2]
[361028787,1747209092846,-981.33,0.00012876,2]
[361028788,1747209092855,-168.61195665,0.00012876,2]
[361028789,1747209092864,-400.0,0.00012876,2]
[361028790,1747209092874,-9355.96,0.00012893,2]
[361028791,1747209092884,-302.58,0.00012899,2]
[361028792,1747209092894,-200.0,0.0001291,2]
[361028793,1747209092904,-151.0,0.00012958,2]
[361028794,1747209092915,-151.0,0.00012958,2]
[361028795,1747209092925,-1000.0,0.0001297,2]
[361028796,1747209092934,-500.0,0.0001297,2]
[361028797,1747209092945,-1000.0,0.0001297,2]
[361028798,1747209092954,-500.0,0.0001297,2]
[361028799,1747209092964,-151.0,0.00012982,2]
[361028800,1747209092976,-1000.0,0.00013,2]
[361028801,1747209092985,-15060.56702897,0.00013,3]
[361028802,1747209092995,-5055.35,0.00013,2]
[361028803,1747209093004,-4285.0549791,0.00013,2]
[361028804,1747209093014,-151.0,0.00013009,2]
[361028805,1747209093023,-512.0,0.0001302,2]
[361028806,1747209093033,-5174.34395974,0.0001305,2]
[361028807,1747209093043,-300.76,0.00013054,2]
[361028808,1747209093053,-416.17002106,0.00013149,2]
[361028809,1747209093063,-400.0,0.00013149,2]
[361028810,1747209093073,-528.13,0.00013149,2]
[361028811,1747209093082,-816.27,0.00013149,2]
[361028812,1747209093092,-400.0,0.00013149,2]
[361028813,1747209093101,-153.88280018,0.00013149,2]
[361028814,1747209093111,-679.38,0.00013149,2]
[361028815,1747209093121,-400.0,0.00013149,2]
[361028816,1747209093132,-472.78559294,0.00013149,2]
[361028817,1747209093141,-411.90553546,0.00013149,2]
[361028818,1747209093151,-400.0,0.0001315,2]
[361028819,1747209093162,-151.0,0.0001315,2]
[361028820,1747209093172,-151.0,0.0001315,2]
[361028821,1747209093182,-203.34381,0.0001315,2]
[361028822,1747209093192,-151.0,0.0001315,2]
[361028823,1747209093202,-151.0,0.0001315,2]
[361028824,1747209093211,-151.0,0.0001315,2]
[361028825,1747209093223,-151.0,0.0001315,2]
[361028826,1747209093233,-151.0,0.0001315,2]
[361028827,1747209093244,-154.043147,0.0001315,2]
[361028828,1747209093254,-703.18,0.0001315,2]
[361028829,1747209093263,-151.0,0.0001315,2]
[361028830,1747209093273,-151.0,0.0001315,2]
[361028831,1747209093283,-151.0,0.0001315,2]
[361028832,1747209093292,-151.0,0.0001315,2]
[361028833,1747209093302,-151.0,0.0001315,2]
[361028834,1747209093311,-172.605832,0.0001315,2]
[361028835,1747209093321,-172.605832,0.0001315,2]
[361028836,1747209093331,-192.866883,0.0001315,2]
[361028837,1747209093340,-192.866883,0.0001315,2]
[361028838,1747209093351,-349.855303,0.0001315,2]
[361028839,1747209093363,-349.855303,0.0001315,2]
[361028840,1747209093372,-335.708552,0.0001315,2]
[361028841,1747209093381,-335.708552,0.0001315,2]
[361028842,1747209093391,-151.0,0.0001315,2]
[361028843,1747209093402,-214.42886,0.0001315,2]